fUSD/lending_fUSD_20240923
["ID","MTS","AMOUNT","RATE_DAILY","PERIOD"]
[338907824,1727058547384,500.0,0.00021999,120]
[338907825,1727058547649,500.0,0.00021999,120]
[338907826,1727058547956,256.86739542,0.00021999,120]
[338907856,1727058549962,500.0,0.00021999,120]
[338907870,1727058550291,500.0,0.00021999,120]
[338907877,1727058550701,500.0,0.00021999,120]
[338907878,1727058550967,500.0,0.00021999,120]
[338907879,1727058551285,500.0,0.00021999,120]
[338907880,1727058551906,500.0,0.00021999,120]
[338907881,1727058552160,500.0,0.00021999,120]
[338907882,1727058552424,500.0,0.00021999,120]
[338907883,1727058552964,500.0,0.00021999,120]
[338907886,1727058556529,500.0,0.00021999,120]
[338907887,1727058556824,500.0,0.00021999,120]
[338907888,1727058557083,500.0,0.00021999,120]
[338907889,1727058557597,500.0,0.00021999,120]
[338907890,1727058557959,500.0,0.00021999,120]
[338907891,1727058558287,500.0,0.00021999,120]
[338907892,1727058558561,500.0,0.00021999,120]
[338907893,1727058558867,504.58366815,0.00021999,120]
[338907894,1727058560918,500.0,0.00021999,120]
[338907895,1727058561166,500.0,0.00021999,120]
[338907896,1727058561467,500.0,0.00021999,120]
[338907897,1727058561725,500.0,0.00021999,120]
[338907898,1727058562001,500.0,0.00021999,120]
[338907918,1727058587326,502.1931146,0.00021999,120]
[338907919,1727058587676,520.0,0.00022,120]
[338907920,1727058590269,498.69858557,0.00021999,120]
[338907921,1727058592421,500.0,0.00021999,120]
[338907922,1727058592751,500.0,0.00021999,120]
[338907923,1727058593053,500.0,0.00021999,120]
[338907924,1727058593336,500.0,0.00021999,120]
[338907925,1727058593619,500.0,0.00021999,120]
[338907926,1727058593882,500.0,0.00021999,120]
[338907927,1727058594214,500.0,0.00021999,120]
[338907928,1727058594471,502.1101613,0.00021999,120]
[338907929,1727058596894,500.0,0.00021999,120]
[338907930,1727058597205,500.0,0.00021999,120]
[338907931,1727058597502,500.0,0.00021999,120]
[338907932,1727058597790,500.0,0.00021999,120]
[338907933,1727058598106,500.0,0.00021999,120]
[338907934,1727058598462,500.0,0.00021999,120]
[338907935,1727058598760,500.0,0.00021999,120]
[338907936,1727058599177,502.74366631,0.00021999,120]
[338907937,1727058602051,330.52,9.938e-05,2]
[338907938,1727058604759,500.0,0.00021999,120]
[338907939,1727058605399,500.0,0.00021999,120]
[338907940,1727058605663,157.95165795,0.00021999,120]
[338907941,1727058607617,500.0,0.00021999,120]
[338907942,1727058607904,595.18575667,0.00021999,120]
[338907943,1727058615446,500.0,0.00021999,120]
[338907944,1727058615766,500.0,0.00021999,120]
[338907945,1727058616035,500.75994218,0.00021999,120]
[338907946,1727058631006,170.01,0.00010959,2]
[338907954,1727058632329,500.0,0.00021999,120]
[338907955,1727058632389,-4223.30804722,0.00012083,2]
[338907956,1727058632401,-518.17163975,0.00012083,2]
[338907957,1727058632410,-381.82835825,0.000121,2]
[338907958,1727058632423,-261.75164175,0.000121,2]
[338907959,1727058632434,-330.52,0.00012202,2]
[338907960,1727058632444,-431.958,0.00012419,2]
[338907961,1727058632456,-2312.65200042,0.00012419,2]
[338907962,1727058632468,-3555.34799958,0.00012419,2]
[338907963,1727058632479,-150.0,0.00012419,2]
[338907964,1727058632489,-619.651,0.00012419,2]
[338907965,1727058632500,-535.826,0.00012419,2]
[338907966,1727058632511,-174.581,0.00012419,2]
[338907967,1727058632522,-300.0,0.00012499,2]
[338907968,1727058632532,-10589.87,0.000125,2]
[338907969,1727058632543,-158.701335,0.00012542,2]
[338907970,1727058632554,-245.43,0.00012624,2]
[338907971,1727058632565,-150.0,0.00012633,2]
[338907972,1727058632575,-809.0,0.00012634,2]
[338907973,1727058632585,-927.346,0.00012634,2]
[338907975,1727058632597,-554.447,0.00012634,2]
[338907976,1727058632607,-553.0,0.00012634,2]
[338907977,1727058632617,-1903.0,0.00012634,2]
[338907978,1727058632628,-1913.0,0.00012634,2]
[338907979,1727058632638,-806.0,0.00012634,2]
[338907980,1727058632649,-248.0,0.00012634,2]
[338907981,1727058632659,-3347.0,0.00012634,2]
[338907982,1727058632670,-1080.0,0.00012634,2]
[338907983,1727058632679,-5794.5679,0.000127,2]
[338907984,1727058632689,-158.701335,0.00012771,2]
[338907985,1727058632699,-150.0,0.00012789,2]
[338907986,1727058632709,-811.07,0.00012789,2]
[338907987,1727058632720,-499.99,0.0001279,2]
[338907988,1727058632732,-150.99,0.0001279,2]
[338907989,1727058632741,-245.43,0.0001279,2]
[338907990,1727058632752,-216.46903804,0.00012794,2]
[338907991,1727058632767,-8373.296,0.000128,2]
[338907992,1727058632778,-2066.551,0.000128,2]
[338907993,1727058632788,-8569.52,0.000128,2]
[338907994,1727058632799,-10001.7361,0.000128,2]
[338907995,1727058632811,-933.72,0.000128,2]
[338907996,1727058632821,-150.0,0.000128,2]
[338907997,1727058632834,-150.62,0.000128,2]
[338907998,1727058632843,-428.27,0.000128,2]
[338907999,1727058632853,-358.1,0.000128,2]
[338908000,1727058632862,-150.0,0.000128,2]
[338908001,1727058632871,-150.76,0.000128,2]
[338908002,1727058632881,-150.0,0.000128,2]
[338908003,1727058632890,-150.0,0.000128,2]
[338908004,1727058632908,-358.1,0.000128,2]
[338908005,1727058632919,-428.27,0.000128,2]
[338908006,1727058632928,-150.0,0.000128,2]
[338908007,1727058632937,-150.0,0.000128,2]
[338908008,1727058632948,-150.0,0.000128,2]
[338908009,1727058632958,-256.97,0.000128,2]
[338908010,1727058632967,-428.27,0.000128,2]
[338908011,1727058632977,-150.0,0.000128,2]
[338908012,1727058632986,-428.27,0.000128,2]
[338908013,1727058632995,-150.0,0.000128,2]
[338908014,1727058633005,-150.0,0.000128,2]
[338908015,1727058633015,-428.27,0.000128,2]
[338908016,1727058633025,-150.0,0.000128,2]
[338908017,1727058633034,-150.0,0.000128,2]
[338908018,1727058633044,-404.9,0.000128,2]
[338908019,1727058633054,-152.51,0.000128,2]
[338908020,1727058633064,-152.15,0.000128,2]
[338908021,1727058633073,-216.46903801,0.00012806,2]
[338908022,1727058633083,-255.0,0.0001281,2]
[338908023,1727058633092,-216.46903801,0.00012818,2]
[338908024,1727058633102,-216.46903801,0.00012829,2]
[338908025,1727058633111,-1080.5893534,0.00012838,2]
[338908026,1727058633121,-216.46903801,0.00012841,2]
[338908027,1727058633130,-1080.58935336,0.00012847,2]
[338908028,1727058633140,-216.46903801,0.00012853,2]
[338908029,1727058633150,-1080.58935336,0.00012856,2]
[338908030,1727058633159,-150.0,0.00012861,2]
[338908031,1727058633170,-1080.58935336,0.00012865,2]
[338908032,1727058633180,-216.46903801,0.00012865,2]
[338908033,1727058633189,-1500.0,0.00012866,2]
[338908034,1727058633198,-1080.58935336,0.00012873,2]
[338908035,1727058633207,-245.43,0.00012876,2]
[338908036,1727058633217,-216.46903801,0.00012876,2]
[338908037,1727058633227,-1080.58935336,0.00012882,2]
[338908038,1727058633236,-34390.18907928,0.00012886,2]
[338908039,1727058633250,-10992.70122072,0.00012886,2]
[338908040,1727058633259,-216.46903801,0.00012888,2]
[338908041,1727058633269,-1080.58935336,0.00012891,2]
[338908042,1727058633279,-150.0,0.00012894,2]
[338908043,1727058633288,-500.0,0.00012896,2]
[338908044,1727058633298,-200.0,0.00012896,2]
[338908045,1727058633307,-11785.4588,0.000129,2]
[338908046,1727058633316,-368.15663702,0.000129,2]
[338908047,1727058633327,-500.0,0.000129,2]
[338908048,1727058633336,-87418.8575,0.000129,2]
[338908049,1727058633347,-354.4778,0.000129,2]
[338908050,1727058633356,-339.5242,0.000129,2]
[338908051,1727058633366,-466.801,0.000129,2]
[338908052,1727058633375,-172.324,0.000129,2]
[338908053,1727058633385,-1512.61,0.000129,2]
[338908054,1727058633395,-291.59,0.000129,2]
[338908055,1727058633404,-175.7589999,0.000129,2]
[338908056,1727058633414,-22522.5531034,0.000129,2]
[338908057,1727058633424,-158.88368566,0.000129,2]
[338908058,1727058633433,-167.78396599,0.000129,2]
[338908059,1727058633442,-998.34,0.000129,2]
[338908060,1727058633452,-216.46903801,0.000129,2]
[338908061,1727058633462,-166.89166689,0.000129,2]
[338908062,1727058633472,-166.89166689,0.000129,2]
[338908063,1727058633483,-166.89166689,0.000129,2]
[338908064,1727058633493,-166.89166689,0.000129,2]
[338908065,1727058633504,-167.39,0.000129,2]
[338908066,1727058633514,-305.27787727,0.000129,2]
[338908067,1727058633524,-1080.58935336,0.000129,2]
[338908068,1727058633534,-305.27787727,0.000129,2]
[338908069,1727058633544,-305.27787727,0.000129,2]
[338908070,1727058633554,-305.27787727,0.000129,2]
[338908071,1727058633564,-305.27787727,0.000129,2]
[338908072,1727058633574,-305.27787727,0.000129,2]
[338908073,1727058633583,-305.27787727,0.000129,2]
[338908074,1727058633593,-305.27787727,0.000129,2]
[338908075,1727058633602,-305.27787727,0.000129,2]
[338908076,1727058633612,-305.27787727,0.000129,2]
[338908077,1727058633622,-305.27787727,0.000129,2]
[338908078,1727058633634,-305.27787727,0.000129,2]
[338908079,1727058633879,-305.27787727,0.000129,2]
[338908080,1727058633889,-305.27787727,0.000129,2]
[338908081,1727058633899,-305.27787727,0.000129,2]
[338908082,1727058633909,-305.27787727,0.000129,2]
[338908083,1727058633919,-305.27787727,0.000129,2]
[338908084,1727058633929,-305.27787727,0.000129,2]
[338908085,1727058633939,-305.27787727,0.000129,2]
[338908086,1727058633949,-305.77,0.000129,2]
[338908087,1727058633959,-353.36944412,0.000129,2]
[338908088,1727058633968,-353.36944412,0.000129,2]
[338908089,1727058633978,-353.36944412,0.000129,2]
[338908090,1727058633987,-353.36944412,0.000129,2]
[338908091,1727058633996,-353.36944412,0.000129,2]
[338908092,1727058634006,-353.36944412,0.000129,2]
[338908093,1727058634015,-353.36944412,0.000129,2]
[338908094,1727058634025,-353.36944412,0.000129,2]
[338908095,1727058634034,-353.36944412,0.000129,2]
[338908096,1727058634043,-353.36944412,0.000129,2]
[338908097,1727058634053,-353.36944412,0.000129,2]
[338908098,1727058634062,-353.36944412,0.000129,2]
[338908099,1727058634072,-353.36944412,0.000129,2]
[338908100,1727058634081,-353.36944412,0.000129,2]
[338908101,1727058634091,-353.36944412,0.000129,2]
[338908102,1727058634100,-353.36944412,0.000129,2]
[338908103,1727058634110,-353.36944412,0.000129,2]
[338908104,1727058634120,-353.36944412,0.000129,2]
[338908105,1727058634130,-353.36944412,0.000129,2]
[338908106,1727058634139,-353.86,0.000129,2]
[338908107,1727058634149,-367.76170878,0.000129,2]
[338908108,1727058634158,-318.97284955,0.000129,2]
[338908109,1727058634168,-194.564588,0.00012938,2]
[338908110,1727058634177,-16335.652729,0.00012938,2]
[338908111,1727058634187,-589.146056,0.00012938,2]
[338908112,1727058634196,-285.390695,0.00012938,2]
[338908113,1727058634206,-150.0,0.00012963,2]
[338908114,1727058634215,-150.0,0.00012965,2]
[338908115,1727058634225,-1544.39715499,0.00012968,2]
[338908116,1727058634234,-155.1508769,0.00012969,2]
[338908117,1727058634244,-400.0,0.0001297,2]
[338908118,1727058634254,-500.0,0.00012973,2]
[338908119,1727058634264,-200.36047922,0.00012973,2]
[338908120,1727058634274,-500.0,0.00012973,2]
[338908121,1727058634284,-500.0,0.00012973,2]
[338908122,1727058634293,-154.05,0.0001299,2]
[338908123,1727058634302,-154.05,0.0001299,2]
[338908124,1727058634312,-154.05,0.0001299,2]
[338908125,1727058634321,-154.05,0.0001299,2]
[338908126,1727058634331,-503.51186159,0.00012999,2]
[338908127,1727058634341,-500.0,0.00012999,2]
[338908128,1727058634350,-522.84119492,0.00012999,2]
[338908129,1727058634360,-500.0,0.00012999,2]
[338908130,1727058634369,-401.74229168,0.00012999,2]
[338908131,1727058634378,-500.0,0.00012999,2]
[338908132,1727058634388,-4763.79317746,0.00012999,2]
[338908133,1727058634397,-2000.0,0.00012999,2]
[338908134,1727058634407,-15030.37,0.00013,2]
[338908135,1727058634416,-96264.75636351,0.00013,2]
[338908136,1727058634429,-18179.2107317,0.00013,2]
[338908137,1727058634440,-5693.984656,0.00013,2]
[338908138,1727058634451,-5950.0,0.00013,2]
[338908139,1727058634462,-2399.99999998,0.00013,2]
[338908140,1727058634482,-609.86344662,0.00013,2]
[338908141,1727058634492,-255.5570155,0.00013,2]
[338908142,1727058634549,500.0,0.00021999,120]
[338908143,1727058634600,500.0,0.00021999,120]
[338908144,1727058634661,500.0,0.00021999,120]
[338908145,1727058634724,264.78397593,0.00021999,120]
[338908146,1727058638406,-255.0,0.00012419,2]
[338908147,1727058638418,-604.56561013,0.00012419,2]
[338908148,1727058638430,-413.90859938,0.00012419,2]
[338908149,1727058638441,-3936.04611518,0.00012419,2]
[338908150,1727058638452,-255.3477856,0.00012419,2]
[338908151,1727058638555,-653.67901261,0.00012419,2]
[338908152,1727058638567,-626.16993068,0.00012419,2]
[338908153,1727058638578,-835.77,0.00012419,2]
[338908154,1727058638733,-5909.51294642,0.00012419,2]
[338908155,1727058638743,-9701.00957119,0.00013,2]
[338908156,1727058638754,-1405968.55533351,0.00013,2]
[338908157,1727058638770,-2735.53908701,0.00013,2]
[338908166,1727058640275,-1147.0,0.00012419,2]
[338908167,1727058640284,-2113.3278724,0.00013,2]
[338908168,1727058640297,-1598.8021276,0.00013,2]
[338908179,1727058640440,-384.522,0.00013,2]
[338908181,1727058640452,-503.05325001,0.00013,2]
[338908183,1727058640609,-377.14,0.00013,2]
[338908198,1727058643656,-3339.91497368,0.00013,2]
[338908203,1727058644649,401.73821319,0.00021999,120]
[338908206,1727058650622,500.0,0.00021999,120]
[338908207,1727058650910,500.0,0.00021999,120]
[338908208,1727058651255,500.0,0.00021999,120]
[338908209,1727058651548,500.0,0.00021999,120]
[338908210,1727058651869,500.0,0.00021999,120]
[338908211,1727058652191,364.18183104,0.00021999,120]
[338908212,1727058654249,500.0,0.00021999,120]
[338908213,1727058654542,500.0,0.00021999,120]
[338908214,1727058654839,500.0,0.00021999,120]
[338908215,1727058655182,500.0,0.00021999,120]
[338908216,1727058655455,308.38792978,0.00021999,120]
[338908217,1727058657667,500.0,0.00021999,120]
[338908218,1727058657943,500.0,0.00021999,120]
[338908219,1727058658252,500.0,0.00021999,120]
[338908220,1727058658574,500.0,0.00021999,120]
[338908221,1727058658865,500.0,0.00021999,120]
[338908222,1727058659157,500.0,0.00021999,120]
[338908223,1727058659509,503.50529763,0.00021999,120]
[338908224,1727058662612,500.0,0.00021999,120]
[338908225,1727058662885,500.0,0.00021999,120]
[338908226,1727058663209,500.0,0.00021999,120]
[338908227,1727058663485,500.0,0.00021999,120]
[338908228,1727058663772,500.0,0.00021999,120]
[338908229,1727058664110,500.0,0.00021999,120]
[338908230,1727058664360,500.0,0.00021999,120]
[338908231,1727058664610,500.0,0.00021999,120]
[338908232,1727058664924,503.02739991,0.00021999,120]
[338908233,1727058667444,500.0,0.00021999,120]
[338908234,1727058667767,500.0,0.00021999,120]
[338908235,1727058668048,183.5130338,0.00021999,120]
[338908236,1727058670168,500.0,0.00021999,120]
[338908237,1727058670452,500.0,0.00021999,120]
[338908238,1727058670761,500.0,0.00021999,120]
[338908239,1727058671098,500.0,0.00021999,120]
[338908240,1727058671429,500.0,0.00021999,120]
[338908241,1727058671655,500.0,0.00021999,120]
[338908242,1727058671923,500.0,0.00021999,120]
[338908243,1727058672176,500.0,0.00021999,120]
[338908244,1727058672444,502.5197112,0.00021999,120]
[338908245,1727058674689,500.0,0.00021999,120]
[338908246,1727058674962,500.0,0.00021999,120]
[338908247,1727058675225,500.0,0.00021999,120]
[338908248,1727058675510,500.0,0.00021999,120]
[338908249,1727058676138,500.0,0.00021999,120]
[338908250,1727058676413,500.0,0.00021999,120]
[338908251,1727058676692,500.0,0.00021999,120]
[338908252,1727058676999,500.0,0.00021999,120]
[338908253,1727058677263,503.5671093,0.00021999,120]
[338908254,1727058681579,500.0,0.00021999,120]
[338908255,1727058681845,500.0,0.00021999,120]
[338908256,1727058682105,500.0,0.00021999,120]
[338908257,1727058682419,500.0,0.00021999,120]
[338908258,1727058682675,500.0,0.00021999,120]
[338908259,1727058682944,500.0,0.00021999,120]
[338908260,1727058683200,500.0,0.00021999,120]
[338908261,1727058683450,500.0,0.00021999,120]
[338908262,1727058683714,504.36066072,0.00021999,120]
[338908263,1727058685879,500.0,0.00021999,120]
[338908264,1727058686134,500.0,0.00021999,120]
[338908265,1727058686396,500.0,0.00021999,120]
[338908266,1727058686684,500.0,0.00021999,120]
[338908267,1727058686963,500.0,0.00021999,120]
[338908268,1727058687229,501.5303911,0.00021999,120]
[338908269,1727058691652,498.6995787,0.00021999,120]
[338908270,1727058693933,500.0,0.00021999,120]
[338908271,1727058694195,500.0,0.00021999,120]
[338908272,1727058694477,500.0,0.00021999,120]
[338908273,1727058694764,500.0,0.00021999,120]
[338908274,1727058695057,500.0,0.00021999,120]
[338908275,1727058695334,500.0,0.00021999,120]
[338908276,1727058695840,500.0,0.00021999,120]
[338908277,1727058696304,500.0,0.00021999,120]
[338908278,1727058696674,500.0,0.00021999,120]
[338908279,1727058699101,500.0,0.00021999,120]
[338908280,1727058699411,500.0,0.00021999,120]
[338908281,1727058699657,500.0,0.00021999,120]
[338908282,1727058699925,500.0,0.00021999,120]
[338908283,1727058700515,500.0,0.00021999,120]
[338908284,1727058700785,500.0,0.00021999,120]
[338908285,1727058701048,502.58467494,0.00021999,120]
[338908286,1727058704949,500.0,0.00021999,120]
[338908287,1727058705200,500.0,0.00021999,120]
[338908288,1727058705460,500.0,0.00021999,120]
[338908289,1727058705782,500.0,0.00021999,120]
[338908290,1727058706091,500.0,0.00021999,120]
[338908291,1727058706368,500.0,0.00021999,120]
[338908292,1727058706617,500.0,0.00021999,120]
[338908293,1727058706874,500.0,0.00021999,120]
[338908294,1727058707168,503.38686945,0.00021999,120]
[338908295,1727058711625,500.0,0.00021999,120]
[338908296,1727058711889,500.0,0.00021999,120]
[338908297,1727058712174,500.0,0.00021999,120]
[338908298,1727058712469,500.0,0.00021999,120]
[338908299,1727058712776,500.0,0.00021999,120]
[338908300,1727058713167,236.82256311,0.00021999,120]
[338908301,1727058716854,500.0,0.00021999,120]
[338908302,1727058717142,500.0,0.00021999,120]
[338908303,1727058717437,500.0,0.00021999,120]
[338908304,1727058717716,346.06083303,0.00021999,120]
[338908305,1727058719864,500.0,0.00021999,120]
[338908306,1727058720114,500.0,0.00021999,120]
[338908307,1727058720378,401.51742527,0.00021999,120]
[338908309,1727059048962,500.0,0.00010663,2]
[338908310,1727059205192,150.0,0.00022,120]
[338908311,1727059206152,150.0,0.00022,120]
[338908312,1727059206818,150.0,0.00022,120]
[338908313,1727059207304,150.0,0.00022,120]
[338908314,1727059207757,150.0,0.00022,120]
[338908315,1727059208163,150.0,0.00022,120]
[338908316,1727059208612,150.0,0.00022,120]
[338908317,1727059209088,150.0,0.00022,120]
[338908318,1727059209566,150.0,0.00022,120]
[338908319,1727059211160,150.0,0.00022,120]
[338908320,1727059214832,150.0,0.00022,120]
[338908321,1727059215295,150.0,0.00022,120]
[338908322,1727059215796,150.0,0.00022,120]
[338908323,1727059264849,153.92,0.00010959,2]
[338908324,1727059339628,314.88,0.00010271,2]
[338908328,1727059559403,935.251296,0.00012019,2]
[338908399,1727059665359,1000.0,0.00011993,2]
[338908400,1727059697537,204.69,0.00011948,2]
[338908441,1727059827807,250.0,0.00011893,2]
[338908446,1727059832533,-150.0,0.00012079,2]
[338908447,1727059832543,-300.0,0.00012079,2]
[338908448,1727059832552,-219.26542766,0.00012079,2]
[338908449,1727059832563,-211.30469908,0.00012079,2]
[338908450,1727059832572,-2201.46604451,0.0001208,2]
[338908451,1727059832695,-1100.52168804,0.0001208,2]
[338908454,1727059834770,226.13,0.00011924,2]
[338908457,1727059839041,-133680.00396184,0.0001208,2]
[338908458,1727059839051,-681.48592687,0.0001208,2]
[338908459,1727059839060,-324.17793712,0.0001208,2]
[338908460,1727059839069,-51129.57435365,0.0001208,2]
[338908461,1727059839078,-250.0,0.0001208,2]
[338908462,1727059839087,-219897.84372614,0.0001208,2]
[338908463,1727059839101,-22987.75951898,0.0001208,2]
[338908464,1727059839112,-6560.85082979,0.0001208,2]
[338908465,1727059839123,-13167.5,0.0001208,2]
[338908466,1727059839134,-602.95355014,0.0001208,2]
[338908467,1727059839146,-291.69999996,0.0001208,2]
[338908468,1727059839156,-868.46789177,0.0001208,2]
[338908469,1727059839172,-13219.36555608,0.0001208,2]
[338908472,1727059840491,-1598.739076,0.0001208,2]
[338908473,1727059840503,-591.236678,0.0001208,2]
[338908474,1727059840515,-395.625,0.0001208,2]
[338908478,1727059843827,-6308.18845154,0.0001208,2]
[338908481,1727059846536,-639.26,0.0001208,2]
[338908482,1727059846549,-1006.8,0.0001208,2]
[338908483,1727059846560,-5378.36347721,0.0001208,2]
[338908484,1727059846572,-1031.19108715,0.0001208,2]
[338908527,1727059850811,1000.0,0.0001198,2]
[338908532,1727059912022,1250.4659,0.0001198,2]
[338908533,1727059942577,391.16,0.00012006,2]
[338908534,1727059944759,334.03,0.00010093,2]
[338908535,1727059955797,174.23,0.00011952,2]
[338908536,1727059999298,25462.2775,0.0001198,2]
[338908537,1727060004001,500.0,0.00021929,120]
[338908538,1727060014687,157.22169634,0.0001198,2]
[338908539,1727060048149,512.8006,0.0001198,2]
[338908540,1727060071720,250.0,0.00011778,2]
[338908541,1727060126094,2716.06,0.00011791,2]
[338908542,1727060140380,1050.0,0.00011,2]
[338908543,1727060155194,176.36,0.00011791,2]
[338908544,1727060184324,168.7645878,0.00011982,2]
[338908545,1727060231140,5014.13703261,0.0001,2]
[338908546,1727060261412,198.91911061,0.00011982,2]
[338908547,1727060270093,1000.0,0.00011767,2]
[338908548,1727060320618,165.75,0.00011777,2]
[338908550,1727060374535,226.13,0.00011777,2]
[338908551,1727060382993,151.95,0.00010959,2]
[338908552,1727060385220,250.0,0.0001179,2]
[338908553,1727060493501,175.75899989,0.00012,2]
[338908554,1727060499642,1000.0,0.00011836,2]
[338908555,1727060505016,157.2216963,0.00011979,2]
[338908556,1727060506459,284.25484156,0.00011948,2]
[338908557,1727060582532,333.94,9.834e-05,2]
[338908558,1727060667186,200.0,0.0001203,2]
[338908559,1727060694329,2002.46,0.00012,2]
[338908563,1727060810435,200.0,0.00011735,2]
[338908566,1727060922000,238.52,0.00011812,2]
[338908567,1727060926607,158.88,0.00010959,2]
[338908585,1727060948774,250.0,0.00011812,2]
[338908586,1727060954439,326.72,0.00011812,2]
[338908596,1727060978224,17812.18,0.00011811,2]
[338908597,1727060985379,157.2216963,0.00011979,2]
[338908601,1727061031845,-816.17935072,0.00012069,2]
[338908602,1727061031855,-154.13,0.00012069,2]
[338908603,1727061031865,-154.13,0.0001207,2]
[338908604,1727061031874,-154.13,0.0001207,2]
[338908605,1727061031884,-154.13,0.0001207,2]
[338908606,1727061031893,-154.13,0.0001207,2]
[338908607,1727061031903,-154.13,0.0001207,2]
[338908608,1727061031912,-150.0,0.00012078,2]
[338908609,1727061031922,-246.0,0.00012078,2]
[338908610,1727061031932,-300.0,0.00012078,2]
[338908611,1727061031941,-213461.98754687,0.00012079,2]
[338908612,1727061031953,-1045.44000008,0.00012079,2]
[338908613,1727061031964,-6409.2,0.00012079,2]
[338908614,1727061032046,-890.11270915,0.00012079,2]
[338908632,1727061037945,-757.258615,0.00012079,2]
[338908633,1727061037957,-314.51665024,0.00012079,2]
[338908634,1727061037969,-29047.07754972,0.00012079,2]
[338908635,1727061037980,-529.76522685,0.00012079,2]
[338908636,1727061037992,-437.93122981,0.00012079,2]
[338908637,1727061038004,-766.51726521,0.00012079,2]
[338908638,1727061038016,-1059.21794976,0.00012079,2]
[338908639,1727061038032,-7635.85806297,0.00012079,2]
[338908640,1727061038043,-649.35606077,0.00012079,2]
[338908641,1727061038122,-64451.74961547,0.00012079,2]
[338908642,1727061038370,-1375.58410087,0.00012079,2]
[338908644,1727061038381,-306.42367944,0.00012079,2]
[338908648,1727061039644,-3074.26019751,0.00012079,2]
[338908649,1727061039656,-604.39093892,0.00012079,2]
[338908650,1727061039667,-385.95255073,0.00012079,2]
[338908651,1727061039849,-1253.63381,0.00012079,2]
[338908652,1727061039859,-201165.32417903,0.00012079,2]
[338908661,1727061040165,-252.02583929,0.00012079,2]
[338908662,1727061040177,-7659.00000018,0.00012079,2]
[338908663,1727061040188,-1600.0,0.00012079,2]
[338908664,1727061040199,-545.50082548,0.00012079,2]
[338908680,1727061042899,-549.999999,0.00012079,2]
[338908681,1727061042911,-853.28999999,0.00012079,2]
[338908682,1727061042923,-832.28687525,0.00012079,2]
[338908683,1727061042934,-874.54195962,0.00012079,2]
[338908684,1727061042945,-451.02779986,0.00012079,2]
[338908685,1727061042957,-10582.75058417,0.00012079,2]
[338908686,1727061042972,-539.447999,0.00012079,2]
[338908687,1727061042983,-4696.7069835,0.00012079,2]
[338908688,1727061042995,-127980.46377943,0.00012079,2]
[338908689,1727061043005,-2000.0,0.00012079,2]
[338908690,1727061043015,-216.12943068,0.0001208,2]
[338908691,1727061043024,-454.34666744,0.0001208,2]
[338908692,1727061043033,-40904.68207441,0.0001208,2]
[338908693,1727061043044,-60922.43003508,0.0001208,2]
[338908694,1727061043055,-1083.11461126,0.0001208,2]